bitfinex-derivatives/quotes_ETHF0:USTF0_20250708
["timestamp","ask_amount","ask_price","bid_price","bid_amount"]
[1751966345145,28.93477219,2551.3,2551.2,1.42763]
[1751966356548,30.74198219,2551.3,2551.2,1.42763]
[1751966356852,0.78397,2551.2,2551.1,0.78394]
[1751966357048,4.45694219,2551.2,2551.1,0.78394]
[1751966360354,6.18064219,2551.2,2551.1,0.78394]
[1751966361354,5.39667219,2551.2,2551.1,0.78394]
[1751966361655,6.18061219,2551.2,2551.1,0.78394]
[1751966369654,7.35657219,2551.2,2550.8,0.6766]
[1751966369959,0.78403,2550.9,2550.8,1.46063]
[1751966370153,4.13581219,2550.9,2550.8,0.78406]
[1751966370348,4.13581219,2550.9,2550.8,1.47786]
[1751966370349,29.70921219,2550.9,2550.8,1.47786]
[1751966370553,29.70921219,2550.9,2550.8,1.48206]
[1751966370748,29.70921219,2550.9,2550.8,1.3918]
[1751966370953,30.72881219,2550.9,2550.8,0.6938]
[1751966371154,32.05671219,2550.9,2550.8,0.6938]
[1751966372054,32.05671219,2550.9,2550.8,1.47786]
[1751966372561,32.05671219,2550.9,2550.8,0.6938]
[1751966374454,32.05671219,2550.9,2550.8,1.47786]
[1751966374854,32.05671219,2550.9,2550.8,0.6938]
[1751966375058,32.05671219,2550.9,2550.8,1.47786]
[1751966377063,32.05671219,2550.9,2550.8,0.6938]
[1751966378559,32.05671219,2550.9,2550.6,0.698]
[1751966378560,0.78409,2550.7,2550.6,0.698]
[1751966378766,33.93866219,2550.7,2550.6,0.698]
[1751966379169,0.78412,2550.6,2550.5,0.78414]
[1751966379370,0.78412,2550.6,2550.2,1.96056]
[1751966379371,0.78423,2550.3,2550.2,0.78422]
[1751966379560,29.09923,2550.3,2550.2,1.46722]
[1751966380871,29.09923,2550.3,2550.2,0.683]
[1751966381165,0.7844,2549.7,2549.5,3.2078]
[1751966381361,2.5044,2549.7,2549.6,2.1764]
[1751966381663,29.1034,2549.7,2549.6,1.392]
[1751966381864,29.1034,2549.7,2549.6,2.17643]
[1751966382164,29.94832049,2549.7,2549.6,2.17643]
[1751966382364,28.319,2549.7,2549.6,2.17643]
[1751966382565,29.1034,2549.7,2549.6,2.17643]
[1751966384462,29.1034,2549.7,2549.6,1.392]
[1751966385460,29.1034,2549.7,2549.6,2.17643]
[1751966386860,29.1034,2549.7,2549.6,1.392]
[1751966387866,29.1034,2549.7,2549.6,2.17643]
[1751966388471,28.319,2549.7,2549.6,2.17643]
[1751966388869,27.2994,2549.7,2549.6,2.17643]
[1751966389569,28.0838,2549.7,2549.6,2.17643]
[1751966389867,27.2994,2549.7,2549.6,2.17643]
[1751966390369,27.2994,2549.7,2549.6,4.34235044]
[1751966390762,3.2078,2549.9,2549.8,2.95029044]
[1751966391067,39.51814,2549.9,2549.8,3.62479044]
[1751966392160,40.53774,2549.9,2549.8,2.95029044]
[1751966392365,40.53774,2549.9,2549.8,3.62479044]
[1751966393671,40.53974,2549.9,2549.8,3.62479044]
[1751966394375,39.52014,2549.9,2549.8,3.62479044]
[1751966395974,36.31234,2549.9,2549.8,3.62479044]
[1751966396176,39.52014,2549.9,2549.8,3.62479044]
[1751966396475,35.63234,2549.9,2549.8,4.66019044]
[1751966396675,35.528,2549.9,2549.8,4.66019044]
[1751966396875,34.848,2549.9,2549.8,4.66019044]
[1751966397277,36.31234,2549.9,2549.8,4.66019044]
[1751966397473,36.31234,2549.9,2549.8,3.62479044]
[1751966398070,36.31234,2549.9,2549.6,5.09527]
[1751966398071,0.78451,2549.4,2549.3,0.78449]
[1751966398272,0.78451,2549.4,2549.1,1.9614]
[1751966398273,0.78457,2549.2,2549.1,0.78455]
[1751966398473,28.07357,2549.2,2549.1,1.45905]
[1751966398669,28.07357,2549.2,2549.1,0.6745]
[1751966398876,0.78458,2549.1,2549.0,3.9924]
[1751966399078,1.46458,2549.1,2549.0,4.6669]
[1751966399277,0.68,2549.1,2549.0,4.6669]
[1751966399478,0.68,2549.1,2549.0,5.3633]
[1751966401482,0.68,2549.1,2549.0,6.3987]
[1751966404487,26.609,2549.2,2549.1,0.78458]
[1751966404882,26.609,2549.2,2549.1,1.45908]
[1751966405078,27.289,2549.2,2549.1,2.49448]
[1751966405275,28.07355,2549.2,2549.1,1.45908]
[1751966405478,27.289,2549.2,2549.1,1.45908]
[1751966406778,28.07355,2549.2,2549.1,1.45908]
[1751966406982,29.10605,2549.2,2549.1,0.78458]
[1751966407180,29.10605,2549.2,2549.1,1.45908]
[1751966407382,29.10605,2549.2,2549.1,0.78458]
[1751966407576,27.289,2549.2,2549.1,3.62500044]
[1751966407774,29.10605,2549.2,2549.1,0.78458]
[1751966407983,0.78458,2549.1,2549.0,4.68878]
[1751966408282,2.49708,2549.1,2549.0,0.78458]
[1751966408484,0.78464,2549.0,2548.9,0.78462]
[1751966408785,0.78464,2548.9,2548.8,0.78467]
[1751966408982,28.09864,2548.9,2548.8,0.78467]
[1751966409180,28.09864,2548.9,2548.8,1.45917]
[1751966409385,29.13114,2548.9,2548.8,0.78467]
[1751966409982,28.3465,2548.9,2548.8,1.45917]
[1751966410487,29.13114,2548.9,2548.8,0.78467]
[1751966410784,0.78467,2548.8,2548.7,1.43418]
[1751966410992,0.68,2548.8,2548.7,1.43418]
[1751966411183,1.7125,2548.8,2548.7,2.10868]
[1751966411484,0.68,2548.8,2548.7,2.10868]
[1751966411789,1.46467,2548.8,2548.7,2.10868]
[1751966411987,2.49717,2548.8,2548.7,2.10868]
[1751966412290,2.49717,2548.8,2548.7,0.6495]
[1751966412486,3.88239,2548.8,2548.7,0.78471]
[1751966412782,3.88237,2548.8,2548.7,0.78471]
[1751966413289,1.7125,2548.8,2548.7,0.78471]
[1751966413482,0.68,2548.8,2548.7,1.45921]
[1751966413684,0.68,2548.8,2548.7,0.78471]
[1751966413984,2.49717,2548.8,2548.7,1.45921]
[1751966414390,1.7125,2548.8,2548.7,1.45921]
[1751966414790,0.68,2548.8,2548.7,1.45921]
[1751966416489,1.3719,2549.1,2548.8,2.16592044]
[1751966416789,37.31687207,2549.0,2548.9,0.78464]
[1751966416993,37.99687207,2549.0,2548.9,1.45024]
[1751966417289,39.02937207,2549.0,2548.9,1.45024]
[1751966417690,39.02937207,2549.0,2548.9,2.12474]
[1751966418586,38.24476207,2549.0,2548.9,2.12474]
[1751966419490,37.21226207,2549.0,2548.9,2.12474]
[1751966421291,37.99687207,2549.0,2548.9,2.12474]
[1751966421495,37.21226207,2549.0,2548.9,2.12474]
[1751966421793,37.99687207,2549.0,2548.9,2.12474]
[1751966422188,3.09887207,2549.0,2548.9,2.12474]
[1751966422388,39.02337207,2549.0,2548.9,2.12474]
[1751966422589,37.20626207,2549.0,2548.9,2.12474]
[1751966422788,3.09887207,2549.0,2548.9,2.12474]
[1751966422994,37.99087207,2549.0,2548.9,2.12474]
[1751966423494,3.09887207,2549.0,2548.9,2.12474]
[1751966423690,37.98987207,2549.0,2548.9,2.12474]
[1751966424593,37.20526207,2549.0,2548.9,2.12474]
[1751966424792,37.20526207,2549.0,2548.9,3.13464]
[1751966424992,35.571,2549.0,2548.9,3.13464]
[1751966425295,8.933,2549.0,2548.9,2.12474]
[1751966425494,35.57,2549.0,2548.9,2.12474]
[1751966427393,37.20944835,2549.0,2548.9,2.12474]
[1751966428491,37.99405835,2549.0,2548.9,2.12474]
[1751966428694,38.99005835,2549.0,2548.9,2.12474]
[1751966428995,38.20544835,2549.0,2548.9,2.12474]
[1751966429495,38.99005835,2549.0,2548.9,2.12474]
[1751966429690,37.99405835,2549.0,2548.9,2.12474]
[1751966429886,0.78468,2548.8,2548.7,0.78469]
[1751966430090,29.10608,2548.8,2548.7,1.42379]
[1751966430384,29.10608,2548.8,2548.6,0.78472]
[1751966430385,0.78471,2548.7,2548.6,0.78472]
[1751966430591,4.11522657,2548.7,2548.6,0.78472]
[1751966430895,0.78474,2548.6,2548.5,0.6391]
[1751966431193,29.10514,2548.6,2548.5,0.6391]
[1751966431388,30.39024,2548.6,2548.5,0.6391]
[1751966431591,32.0304799,2548.6,2548.5,2.10397]
[1751966431893,30.7453799,2548.6,2548.5,2.10397]
[1751966434490,30.7453799,2548.6,2548.5,1.3192]
[1751966434993,30.7453799,2548.6,2548.5,0.6391]
[1751966435194,30.7453799,2548.6,2548.5,1.3192]
[1751966435195,32.1440799,2548.6,2548.5,1.3192]
[1751966435395,32.1440799,2548.6,2548.5,0.6391]
[1751966435994,32.1440799,2548.6,2548.5,1.3192]
[1751966436593,30.7453799,2548.6,2548.5,2.10397]
[1751966436791,1.6402399,2548.6,2548.5,2.10397]
[1751966437094,28.2702399,2548.6,2548.5,3.11387]
[1751966437887,26.629,2548.6,2548.5,6.32167]
[1751966439298,29.07279437,2548.6,2548.5,5.27979044]
[1751966439488,29.76719437,2548.6,2548.5,3.58979044]
[1751966439692,29.76719437,2548.6,2548.5,2.10397]
[1751966440387,30.76319437,2548.6,2548.5,1.42387]
[1751966440594,30.76319437,2548.6,2548.5,2.10397]
[1751966440791,30.76319437,2548.6,2548.5,4.26989044]
[1751966440991,30.76319437,2548.6,2548.5,2.10397]
[1751966442197,30.76300377,2548.6,2548.5,2.10397]
[1751966442596,29.97826377,2548.6,2548.5,2.10397]
[1751966442996,28.98226377,2548.6,2548.5,2.10397]
[1751966446402,29.76700377,2548.6,2548.5,2.10397]
[1751966447404,28.98226377,2548.6,2548.5,2.10397]
[1751966448909,29.76700377,2548.6,2548.5,2.10397]
[1751966449107,30.76300377,2548.6,2548.5,2.10397]
[1751966450405,0.78482,2548.4,2548.2,3.2078]
[1751966450602,28.41786,2548.3,2548.2,0.78484]
[1751966450907,0.78486,2548.2,2548.1,1.48556]
[1751966451108,2.45166,2548.2,2548.1,1.48556]
[1751966451303,2.45166,2548.2,2548.1,2.17726]
[1751966452604,4.1099954,2548.2,2548.1,2.17726]
[1751966453406,2.45166,2548.2,2548.1,2.17726]
[1751966455713,1.6668,2548.2,2548.1,2.17726]
[1751966455912,3.32472337,2548.2,2548.1,2.17726]
[1751966456511,4.10958337,2548.2,2548.1,2.17726]
[1751966458608,3.32472337,2548.2,2548.1,2.17726]
[1751966458812,2.32872337,2548.2,2548.1,2.17726]
[1751966460513,4.10488337,2548.2,2548.1,2.17726]
[1751966460811,4.10488337,2548.2,2548.1,4.34318044]
[1751966461012,4.10488337,2548.2,2548.1,2.17729]
[1751966462514,4.10488337,2548.2,2548.0,0.30062]
[1751966462711,28.41317,2548.1,2548.0,0.30062]
[1751966463018,32.12390217,2548.1,2548.0,0.30062]
[1751966466614,0.78497,2547.8,2547.7,1.49197]
[1751966466810,29.09107,2547.8,2547.7,1.49197]
[1751966467017,28.3061,2547.8,2547.7,1.49197]
[1751966467409,29.09107,2547.8,2547.7,2.18367]
[1751966467614,28.3061,2547.8,2547.7,1.49197]
[1751966467813,28.3061,2547.8,2547.7,2.18367]
[1751966468020,29.09107,2547.8,2547.7,2.18367]
[1751966468214,28.09977,2547.8,2547.7,2.18367]
[1751966468614,29.09107,2547.8,2547.7,2.18367]
[1751966468820,29.09107,2547.8,2547.7,1.3987]
[1751966469117,30.74684788,2547.8,2547.7,2.1837]
[1751966469510,30.74684788,2547.8,2547.7,1.3987]
[1751966469709,30.74671839,2547.8,2547.7,1.3987]
[1751966470517,30.74671839,2547.8,2547.7,2.1837]
[1751966472620,30.74671839,2547.8,2547.7,1.3987]
[1751966472819,29.09107,2547.8,2547.7,1.3987]
[1751966473416,29.09107,2547.8,2547.7,2.1837]
[1751966474217,28.3061,2547.8,2547.7,2.1837]
[1751966474820,27.3148,2547.8,2547.7,2.1837]
[1751966475020,28.09977,2547.8,2547.7,2.1837]
[1751966476524,27.3148,2547.8,2547.7,2.1837]
[1751966477422,28.09977,2547.8,2547.7,2.1837]
[1751966478025,29.09107,2547.8,2547.7,2.1837]
[1751966482522,0.7027,2548.1,2548.0,0.7849]
[1751966482726,0.78496,2547.9,2547.8,0.78492]
[1751966482926,29.16396,2547.9,2547.8,0.78492]
[1751966483524,30.82425999,2547.9,2547.8,1.45882]
[1751966483723,30.82425999,2547.9,2547.8,0.78492]
[1751966483926,30.82425999,2547.9,2547.8,1.45882]
[1751966485027,34.03205999,2547.9,2547.8,1.45882]
[1751966485528,34.03205999,2547.9,2547.8,0.6739]
[1751966485724,34.03205999,2547.9,2547.8,1.45887]
[1751966487829,34.03205999,2547.9,2547.8,0.6739]
[1751966488027,0.78497,2547.8,2547.7,0.707]
[1751966488227,4.19326999,2547.8,2547.7,0.707]
[1751966488422,5.52776999,2547.8,2547.7,0.707]
[1751966489029,0.78503,2547.6,2547.5,0.78503]
[1751966489224,28.379,2547.6,2547.4,0.6383]
[1751966489424,3.48775999,2547.5,2547.4,0.6383]
[1751966489630,3.15095999,2547.5,2547.4,2.09729]
[1751966489820,3.15095999,2547.5,2547.4,1.3122]
[1751966490024,30.82735999,2547.5,2547.4,0.6383]
[1751966490424,30.82735999,2547.5,2547.4,1.3122]
[1751966490824,29.78495999,2547.5,2547.4,1.3122]
[1751966491125,29.78495999,2547.5,2547.4,0.6383]
[1751966491931,29.78495999,2547.5,2547.4,2.09729]
[1751966492229,29.78495999,2547.5,2547.4,1.3122]
[1751966492930,34.03515999,2547.5,2547.4,0.6383]
[1751966493131,0.78512,2547.3,2547.2,0.78513]
[1751966493331,27.3376,2547.3,2547.2,2.15153]
[1751966493526,28.29229999,2547.3,2547.2,2.15153]
[1751966493727,29.07741999,2547.3,2547.2,2.15153]
[1751966493928,29.78301999,2547.3,2547.2,2.15153]
[1751966494328,30.82541999,2547.3,2547.2,1.3664]
[1751966494636,30.82541999,2547.3,2547.2,0.6925]
[1751966494930,30.82541999,2547.3,2547.2,1.3664]
[1751966498139,30.82541999,2547.3,2547.2,0.6925]
[1751966498339,0.78521,2547.0,2546.9,2.95113044]
[1751966498636,28.12481,2547.0,2546.9,3.62503044]
[1751966498831,27.41921,2547.0,2546.9,3.62503044]
[1751966499026,28.12481,2547.0,2546.9,3.62503044]
[1751966499528,27.3396,2547.0,2546.9,3.62503044]
[1751966499731,27.3396,2547.0,2546.9,4.31653044]
[1751966499930,27.3396,2547.0,2546.9,5.31483044]
[1751966500231,28.12481,2547.0,2546.9,4.31653044]
[1751966503334,27.3396,2547.0,2546.9,5.31483044]
[1751966503634,26.636,2547.0,2546.9,3.14891]
[1751966504038,26.636,2547.0,2546.9,4.44601]
[1751966504632,28.12681,2547.0,2546.9,4.44601]
[1751966504835,27.3416,2547.0,2546.9,4.44601]
[1751966505032,0.78518,2547.2,2546.9,3.6608]
[1751966505233,26.636,2547.0,2546.9,3.44774]
[1751966505535,27.42121,2547.0,2546.9,3.44774]
[1751966505736,27.3416,2547.0,2546.9,3.44774]
[1751966506641,27.3416,2547.0,2546.9,2.15064]
[1751966507138,27.3416,2547.0,2546.9,3.14894]
[1751966510939,27.3416,2547.0,2546.9,2.15064]
[1751966512844,27.3416,2547.0,2546.9,3.16944]
[1751966513345,27.3416,2547.0,2546.9,2.15064]
[1751966513748,27.3416,2547.0,2546.9,3.16944]
[1751966515649,27.3416,2547.0,2546.9,2.15064]
[1751966517036,27.3416,2547.0,2546.9,3.16944]
[1751966517235,27.3416,2547.0,2546.9,2.15064]
[1751966518245,27.3416,2547.0,2546.9,3.16944]
[1751966519846,27.3416,2547.0,2546.9,2.15064]
[1751966520150,27.3416,2547.0,2546.9,3.16944]
[1751966521144,27.3416,2547.0,2546.9,2.15064]
[1751966521752,29.01247921,2547.0,2546.9,2.15064]
[1751966524551,2.37647921,2547.0,2546.9,2.15064]
[1751966524750,29.01347921,2547.0,2546.9,2.15064]
[1751966525249,29.01347921,2547.0,2546.9,5.35844]
[1751966525942,29.01347921,2547.0,2546.9,5.33624]
[1751966526147,29.01347921,2547.0,2546.9,4.68454]
[1751966526650,29.01347921,2547.0,2546.9,5.33624]
[1751966527051,29.01347921,2547.0,2546.9,2.12844]
[1751966527252,29.01347921,2547.0,2546.9,5.33624]
[1751966530656,29.01347921,2547.0,2546.9,2.12844]
[1751966530956,29.01347921,2547.0,2546.9,5.33624]
[1751966533267,30.05397921,2547.0,2546.9,1.43694]
[1751966533558,0.78538,2546.6,2546.5,0.78534]
[1751966533757,29.16518,2546.6,2546.5,0.78534]
[1751966533953,39.08905921,2546.6,2546.5,0.78534]
[1751966534259,41.06555921,2546.6,2546.5,0.78534]
[1751966534559,41.06555921,2546.6,2546.5,2.52194071]
[1751966534858,41.06555921,2546.6,2546.5,0.78534]
[1751966535156,0.7854,2546.5,2546.4,0.78538]
[1751966535356,5.51757921,2546.5,2546.4,0.78538]
[1751966536050,4.73217921,2546.5,2546.4,0.78538]
[1751966537257,0.78542,2546.4,2546.3,0.78541]
[1751966537562,31.48459846,2546.4,2546.3,0.78541]
[1751966537753,31.40247846,2546.4,2546.0,3.2078]
[1751966537954,0.78549,2546.1,2546.0,3.9933]
[1751966538253,29.16729,2546.1,2546.0,3.9933]
[1751966539153,29.16729,2546.1,2546.0,3.2078]
[1751966539461,0.78557,2545.9,2545.8,0.78557]
[1751966539759,37.42337,2545.9,2545.8,0.78557]
[1751966540154,38.07817,2545.9,2545.8,0.78557]
[1751966541260,0.7856,2545.8,2545.7,0.78559]
[1751966541457,3.8362,2545.8,2545.7,0.78559]
[1751966542355,3.0506,2545.8,2545.7,0.78559]
[1751966542656,3.83618,2545.8,2545.7,0.78559]
[1751966543050,2.0101,2545.8,2545.7,1.46129]
[1751966543256,35.541,2545.8,2545.7,1.46129]
[1751966543750,0.644,2545.8,2545.7,2.51049]
[1751966543956,8.255,2546.1,2546.0,0.78552]
[1751966544157,35.543,2546.1,2546.0,1.46122]
[1751966545757,35.543,2546.1,2546.0,3.63327147]
[1751966547162,0.644,2546.1,2546.0,3.63327147]
[1751966547362,27.295,2546.1,2546.0,3.63327147]
[1751966550462,27.295,2546.1,2546.0,1.46122]
[1751966550658,27.295,2546.1,2546.0,3.63327147]
[1751966551163,27.295,2546.1,2546.0,1.46122]
[1751966551365,27.295,2546.1,2546.0,3.63327147]
[1751966557062,0.644,2546.1,2546.0,3.63327147]
[1751966557263,27.29,2546.1,2546.0,3.63327147]
[1751966557866,0.644,2546.1,2546.0,3.63327147]
[1751966558068,27.29,2546.1,2546.0,3.63327147]
[1751966560167,26.646,2546.1,2546.0,1.46122]
[1751966560370,27.29,2546.1,2546.0,3.63327147]
[1751966560767,1.83256,2546.3,2546.2,0.78546]
[1751966561068,3.2078,2546.9,2546.8,0.78528]
[1751966561368,5.36504,2547.3,2547.2,0.78515]
[1751966561572,42.84758584,2547.3,2547.2,2.95720147]
[1751966561975,42.84758584,2547.3,2547.2,0.78515]
[1751966562473,43.63270584,2547.3,2547.2,0.78515]
[1751966563275,16.96870584,2547.3,2547.2,0.78515]
[1751966563468,43.63670584,2547.3,2547.2,0.78515]
[1751966564074,42.85158584,2547.3,2547.2,0.78515]
[1751966564473,43.63672584,2547.3,2547.1,0.78516]
[1751966564673,40.28904,2547.3,2547.1,0.78516]
[1751966564871,1.42915,2547.2,2547.1,1.46086]
[1751966565071,0.644,2547.2,2547.1,1.46086]
[1751966565596,1.42915,2547.2,2547.1,1.46086]
[1751966565839,1.42915,2547.2,2547.1,1.46088]
[1751966566277,2.47625,2547.2,2547.1,1.46088]
[1751966566775,1.6911,2547.2,2546.9,0.6727]
[1751966566978,28.49431,2547.1,2547.0,0.7852]
[1751966567179,29.13831,2547.1,2547.0,1.4609]
[1751966567580,27.306,2547.1,2547.0,1.4609]
[1751966567877,28.09118,2547.1,2547.0,1.4609]
[1751966568269,27.306,2547.1,2547.0,3.63295147]
[1751966568678,28.09118,2547.1,2547.0,3.63295147]
[1751966572882,8.256,2547.3,2547.2,2.95720147]
[1751966573083,36.36684,2547.3,2547.2,2.82125147]
[1751966573284,0.78515,2547.2,2547.1,0.78518]
[1751966573583,1.45185,2547.2,2547.1,1.43438]
[1751966573979,0.78518,2547.1,2547.0,2.95724147]
[1751966574180,28.10988,2547.1,2547.0,3.60644147]
[1751966575580,27.44318,2547.1,2547.0,3.60644147]
[1751966576183,28.10988,2547.1,2547.0,3.60644147]
[1751966576385,0.9661,2547.3,2547.1,0.78515]
[1751966576585,28.10587,2547.2,2547.1,1.43435]
[1751966576785,28.10487,2547.2,2547.1,1.43435]
[1751966578680,27.3197,2547.2,2547.1,1.43435]
[1751966579480,28.10485,2547.2,2547.1,1.43435]
[1751966580086,0.6667,2547.2,2547.1,2.43005]
[1751966580287,26.65,2547.2,2547.1,2.43005]
[1751966580785,27.43515,2547.2,2547.1,2.43005]
[1751966580982,26.65,2547.2,2547.1,2.43005]
[1751966581583,27.43515,2547.2,2547.1,3.81215]
[1751966581783,26.65,2547.2,2547.1,3.81215]
[1751966581984,27.43515,2547.2,2547.1,3.81215]
[1751966582381,26.65,2547.2,2547.1,3.81215]
[1751966583283,3.2078,2547.4,2547.1,4.98992]
[1751966583490,3.2078,2547.4,2547.3,0.78512]
[1751966584984,34.914,2547.5,2547.4,2.95714147]
[1751966585381,35.5807,2547.5,2547.4,2.95714147]
[1751966586186,34.914,2547.5,2547.4,2.95714147]
[1751966586392,34.914,2547.5,2547.4,3.60634147]
[1751966586591,34.914,2547.5,2547.4,2.95714147]
[1751966586885,34.914,2547.5,2547.4,3.60634147]
[1751966587288,35.5807,2547.5,2547.4,3.60634147]
[1751966587689,27.3207,2547.5,2547.4,3.60634147]
[1751966589186,27.3177,2547.5,2547.4,3.60634147]
[1751966589382,27.3177,2547.5,2547.4,4.60204147]
[1751966589792,3.2078,2547.6,2547.5,0.78506]
[1751966590087,29.8548,2547.6,2547.5,2.42996]
[1751966590293,32.17065993,2547.6,2547.5,2.42996]
[1751966590994,32.17042764,2547.6,2547.5,2.42996]
[1751966591190,32.17042764,2547.6,2547.5,4.60201147]
[1751966591389,32.17063543,2547.6,2547.5,4.60201147]
[1751966591591,28.96283543,2547.6,2547.5,4.60201147]
[1751966591791,27.3137,2547.6,2547.5,4.60201147]
[1751966594099,28.96218895,2547.6,2547.5,4.60201147]
[1751966594699,2.31518895,2547.6,2547.5,4.60201147]
[1751966595400,0.6667,2547.6,2547.5,4.60201147]
[1751966597200,0.6667,2547.6,2547.5,2.42996]
[1751966597403,0.6667,2547.6,2547.5,3.60631147]
[1751966598806,0.6667,2547.6,2547.5,1.43426]
[1751966598994,0.6667,2547.6,2547.5,3.60631147]
[1751966599200,2.31465432,2547.6,2547.5,3.60631147]
[1751966599997,2.31469699,2547.6,2547.5,3.60631147]
[1751966600194,2.31463707,2547.6,2547.5,3.60631147]
[1751966601105,2.31463707,2547.6,2547.5,1.43426]
[1751966601308,0.6667,2547.6,2547.5,2.42996]
[1751966601710,0.6667,2547.6,2547.5,0.78506]
[1751966601910,2.31498358,2547.6,2547.5,1.46556]
[1751966603309,4.06891358,2547.6,2547.5,1.46556]
[1751966603907,3.10001358,2547.6,2547.5,1.46556]
[1751966607706,2.31498358,2547.6,2547.5,1.46556]
[1751966608106,3.2078,2547.9,2547.6,1.96253]
[1751966608403,3.2078,2547.9,2547.8,1.46547]
[1751966608609,1.64945505,2547.9,2547.8,4.67327]
[1751966608799,26.633,2548.1,2548.0,0.78491]
[1751966608999,28.96026275,2548.1,2548.0,0.78491]
[1751966609409,1.64946275,2548.1,2548.0,0.78491]
[1751966609606,3.2078,2548.2,2548.1,0.78488]
[1751966611013,4.85624763,2548.2,2548.1,0.78488]
[1751966611809,4.85624763,2548.2,2548.1,2.43108]
[1751966612006,1.64844763,2548.2,2548.1,2.43108]
[1751966612504,3.2078,2548.5,2548.4,0.78478]
[1751966612705,32.94349905,2548.5,2548.4,0.78478]
[1751966613502,32.94349905,2548.5,2548.4,1.46528]
[1751966613707,33.91239905,2548.5,2548.4,0.78478]
[1751966613912,33.91239905,2548.5,2548.4,1.46528]
[1751966614112,35.25039905,2548.5,2548.4,1.46528]
[1751966615611,5.40759905,2548.5,2548.4,1.46528]
[1751966615911,32.05059905,2548.5,2548.4,1.46528]
[1751966616108,31.08169905,2548.5,2548.4,1.46528]
[1751966616309,32.05059905,2548.5,2548.4,1.46528]
[1751966617416,30.41245,2548.5,2548.4,1.46528]
[1751966619916,29.44355,2548.5,2548.4,1.46528]
[1751966623819,30.41245,2548.5,2548.4,1.46528]
[1751966628124,27.3208,2548.5,2548.4,1.46528]
[1751966628525,8.255,2548.6,2548.5,0.78475]
[1751966628821,3.9924,2549.1,2549.0,2.95662147]
[1751966629020,32.93094793,2549.1,2549.0,0.78457]
[1751966629218,0.78468,2548.8,2548.7,0.78465]
[1751966629423,0.78468,2548.8,2548.7,1.46515]
[1751966629424,29.06538,2548.8,2548.7,1.46515]
[1751966629626,29.06538,2548.8,2548.7,0.78465]
[1751966629819,28.09648,2548.8,2548.7,1.46515]
[1751966630016,29.06538,2548.8,2548.7,0.6805]
[1751966630321,0.78469,2548.7,2548.6,0.7847]
[1751966630522,6.17,2548.7,2548.4,0.6388]
[1751966630822,0.78478,2548.5,2548.4,0.78475]
[1751966631026,1.45948,2548.5,2548.4,0.78475]
[1751966631217,3.72698,2548.5,2548.4,0.78475]
[1751966632427,3.72698,2548.5,2548.4,1.44655]
[1751966632726,3.72698,2548.5,2548.4,0.78475]
[1751966633226,3.72698,2548.5,2548.4,1.44655]
[1751966635431,2.9422,2548.5,2548.4,1.44655]
[1751966635627,1.9733,2548.5,2548.4,1.44655]
[1751966636630,0.6747,2548.5,2548.4,1.44655]
[1751966638231,3.2078,2548.8,2548.7,0.78469]
[1751966638534,31.49437685,2548.8,2548.7,1.44649]
[1751966638735,28.96127685,2548.8,2548.7,1.44649]
[1751966638925,28.28657685,2548.8,2548.7,2.08629]
[1751966639127,1.63257685,2548.8,2548.7,3.04799]
[1751966639331,26.654,2548.9,2548.8,0.78466]
[1751966639532,28.96137428,2548.9,2548.8,1.44646]
[1751966639835,28.96137428,2548.9,2548.8,3.61851147]
[1751966640230,1.63267428,2548.9,2548.8,2.40816]
[1751966641227,2.30737428,2548.9,2548.8,2.40816]
[1751966641432,1.63267428,2548.9,2548.8,2.40816]
[1751966641833,2.30737428,2548.9,2548.8,2.40816]
[1751966644538,1.63267428,2548.9,2548.8,5.61596]
[1751966644733,1.63267428,2548.9,2548.8,7.00556]
[1751966647336,2.30737428,2548.9,2548.8,7.00556]
[1751966647535,1.63267428,2548.9,2548.8,7.00556]
[1751966647926,2.30737428,2548.9,2548.8,7.00556]
[1751966648938,2.30737428,2548.9,2548.8,9.17761147]
[1751966649637,2.30737428,2548.9,2548.8,5.96981147]
[1751966650042,2.30737428,2548.9,2548.8,9.17761147]
[1751966653842,1.63267428,2548.9,2548.8,7.00556]
[1751966654236,70.5172,2549.2,2548.9,1.96153]
[1751966654432,96.152,2549.2,2549.1,1.44637]
[1751966654731,99.64243194,2549.2,2549.1,0.78457]
[1751966655035,99.64243194,2549.2,2549.1,1.44637]
[1751966655236,98.85789194,2549.2,2549.1,0.78457]
[1751966655436,97.84169194,2549.2,2549.1,1.44637]
[1751966656239,98.62623194,2549.2,2549.1,1.44637]
[1751966656738,97.84169194,2549.2,2549.1,1.44637]
[1751966657341,62.94069194,2549.2,2549.1,2.40807]
[1751966657537,89.58669194,2549.2,2549.1,5.61587]
[1751966658043,89.58669194,2549.2,2549.1,4.65417]
[1751966658640,1.68969194,2549.2,2549.1,5.61587]
[1751966658845,1.68969194,2549.2,2549.1,7.00807]
[1751966659246,26.646,2549.3,2549.1,7.00807]
[1751966659247,26.646,2549.3,2549.2,0.78454]
[1751966659547,28.33588461,2549.3,2549.2,0.78454]
[1751966659746,29.01058461,2549.3,2549.2,0.78454]
[1751966660044,29.01058552,2549.3,2549.2,2.95659147]
[1751966662049,29.79509552,2549.3,2549.2,2.95659147]
[1751966662348,29.01058552,2549.3,2549.2,2.95659147]
[1751966662942,29.03128552,2549.3,2549.2,2.95659147]
[1751966663450,29.81579552,2549.3,2549.2,3.64959147]
[1751966665349,30.82409552,2549.3,2549.2,3.64959147]
[1751966668349,30.82409552,2549.3,2549.2,1.47754]
[1751966668751,32.22249552,2549.3,2549.2,1.47754]
[1751966672550,32.22249552,2549.3,2549.2,0.78454]
[1751966672755,0.78454,2549.2,2549.1,0.78457]
[1751966673054,5.56972552,2549.2,2549.1,0.78457]
[1751966674258,5.5642418,2549.2,2549.1,0.78457]
[1751966675254,0.78457,2549.1,2549.0,0.78457]